bitfinex/quotes_SOLUSD_20241205
["timestamp","ask_amount","ask_price","bid_price","bid_amount"]
[1733409248731,137.8,239.99,239.95,20.0]
[1733409248932,0.62788539,239.98,239.95,20.0]
[1733409249230,0.62788539,239.98,239.97,20.10505674]
[1733409249610,0.4739681,240.0,239.97,20.10505674]
[1733409249810,0.4739681,240.0,239.99,20.10505674]
[1733409250328,137.8,239.97,239.95,20.10505674]
[1733409250510,0.62788539,239.96,239.94,20.10505674]
[1733409250712,0.62788539,239.96,239.9,20.10505674]
[1733409251031,137.8,239.95,239.9,20.10505674]
[1733409251242,0.62788539,239.94,239.91,20.10505674]
[1733409251440,0.62788539,239.94,239.9,20.10505674]
[1733409251644,20.10505674,239.91,239.85,20.10505674]
[1733409251943,0.62788539,239.9,239.85,20.10505674]
[1733409252145,20.73294213,239.9,239.83,20.10505674]
[1733409252323,0.62788539,239.9,239.84,20.10505674]
[1733409252522,0.62788539,239.9,239.85,20.10505674]
[1733409252724,117.69494326,239.78,239.67,8.8533]
[1733409252920,20.10505674,239.87,239.77,20.10505674]
[1733409253119,20.10505674,239.87,239.8,20.10505674]
[1733409253331,137.92549,239.86,239.8,20.10505674]
[1733409253649,20.10505674,239.85,239.68,0.12549]
[1733409253854,137.8,239.85,239.81,20.10505674]
[1733409254021,137.8,239.83,239.76,20.10505674]
[1733409254220,137.8,239.84,239.82,20.10505674]
[1733409254430,137.8,239.84,239.76,20.10505674]
[1733409254431,0.12549,239.9,239.83,20.10505674]
[1733409254851,0.75337539,239.9,239.84,4.175]
[1733409255420,40.85843213,239.9,239.84,4.175]
[1733409255627,0.62788539,239.9,239.89,20.10505674]
[1733409255945,0.62788539,239.92,239.89,4.175]
[1733409256151,0.62788539,239.92,239.91,4.175]
[1733409256329,0.62788539,239.96,239.91,4.175]
[1733409257038,0.62788539,239.96,239.92,4.175]
[1733409257237,0.4739681,240.0,239.82,5.5227]
[1733409257238,0.62788539,239.98,239.94,4.175]
[1733409257845,20.10505674,239.97,239.94,4.175]
[1733409258051,0.62788539,239.96,239.95,24.28005674]
[1733409258255,0.62788539,239.99,239.95,24.28005674]
[1733409258549,0.62788539,239.99,239.98,4.175]
[1733409258747,0.4739681,240.0,239.98,4.175]
[1733409258943,0.4739681,240.0,239.98,24.28005674]
[1733409259445,0.4739681,240.0,239.98,20.10505674]
[1733409259648,0.4739681,240.0,239.97,20.10505674]
[1733409260247,0.4739681,240.0,239.95,20.10505674]
[1733409260435,0.62788539,239.99,239.95,20.10505674]
[1733409260823,0.62788539,239.99,239.97,20.10505674]
[1733409261024,0.4739681,240.0,239.97,20.10505674]
[1733409261239,0.62788539,239.99,239.98,20.10505674]
[1733409261438,0.4739681,240.0,239.94,20.10505674]
[1733409261643,0.62788539,239.99,239.95,20.10505674]
[1733409261946,0.62788539,239.99,239.96,20.10505674]
[1733409262453,0.62788539,239.99,239.94,4.175]
[1733409262454,0.62788539,239.99,239.97,20.10505674]
[1733409262769,0.4739681,240.0,239.96,20.10505674]
[1733409262928,0.62788539,239.99,239.96,20.10505674]
[1733409263753,0.4739681,240.0,239.88,20.10505674]
[1733409263754,0.4739681,240.0,239.99,0.12549]
[1733409263934,0.4739681,240.0,239.99,26.3751881]
[1733409264140,0.4739681,240.0,239.99,26.5006781]
[1733409264829,0.62788539,240.11,240.02,20.0]
[1733409265028,0.62788539,240.11,240.06,20.10505674]
[1733409265357,0.62788539,240.11,240.07,20.10505674]
[1733409265653,0.62788539,240.11,240.05,20.10505674]
[1733409266032,20.73294213,240.11,240.04,20.10505674]
[1733409266232,20.73294213,240.11,240.09,20.10505674]
[1733409266233,0.62788539,240.11,240.09,20.10505674]
[1733409266555,157.90505674,240.13,240.06,20.10505674]
[1733409266752,137.8,240.1,240.04,20.10505674]
[1733409266946,0.62788539,240.09,240.04,20.10505674]
[1733409267145,137.8,240.08,240.05,20.10505674]
[1733409267329,138.42788539,240.07,240.06,20.10505674]
[1733409267529,137.8,240.06,240.05,20.10505674]
[1733409267851,137.8,240.04,240.01,20.0]
[1733409268056,0.62788539,240.03,240.01,20.0]
[1733409268952,0.62788539,240.03,240.02,20.10505674]
[1733409270144,20.10505674,240.04,239.97,20.10505674]
[1733409270346,20.73294213,240.03,239.96,20.10505674]
[1733409271355,20.10505674,240.01,239.94,20.10505674]
[1733409271558,0.62788539,240.0,239.94,20.10505674]
[1733409271930,0.62788539,240.0,239.95,20.10505674]
[1733409272532,20.73294213,240.01,239.95,20.10505674]
[1733409272761,20.10505674,240.0,239.94,20.10505674]
[1733409272934,0.62788539,239.99,239.94,20.10505674]
[1733409273445,20.73294213,239.99,239.93,20.10505674]
[1733409273646,20.10505674,239.94,239.87,20.10505674]
[1733409273839,20.73294213,239.93,239.87,20.10505674]
[1733409274153,0.62788539,239.93,239.87,20.10505674]
[1733409274358,137.8,239.91,239.87,20.10505674]
[1733409274529,0.62788539,239.9,239.87,20.10505674]
[1733409275254,137.8,239.86,239.84,20.10505674]
[1733409275448,0.62788539,239.85,239.84,20.10505674]
[1733409276046,137.8,239.86,239.84,20.10505674]
[1733409276334,137.8,239.84,239.79,0.12549]
[1733409276554,137.8,239.84,239.81,20.0]
[1733409276754,137.8,239.84,239.82,20.0]
[1733409276962,157.90505674,239.91,239.83,20.10505674]
[1733409277135,0.62788539,239.9,239.84,20.10505674]
[1733409277331,0.62788539,239.9,239.88,20.10505674]
[1733409277535,117.69494326,239.86,239.79,24.027864]
[1733409277737,0.62788539,239.85,239.79,24.027864]
[1733409277937,0.62788539,239.85,239.84,20.10505674]
[1733409278237,0.62788539,239.92,239.84,20.10505674]
[1733409278460,20.0,239.99,239.89,20.10505674]
[1733409278664,20.10505674,239.96,239.89,20.10505674]
[1733409278839,0.62788539,239.95,239.89,20.10505674]
[1733409279046,0.62788539,239.95,239.93,20.10505674]
[1733409279262,0.62788539,240.0,239.94,20.10505674]
[1733409279472,0.62788539,240.0,239.96,20.10505674]
[1733409279640,0.62788539,240.02,239.97,20.10505674]
[1733409279971,20.73294213,240.02,239.94,20.10505674]
[1733409280341,20.10505674,240.01,239.93,20.10505674]
[1733409280548,0.62788539,240.0,239.94,20.10505674]
[1733409280867,20.10505674,239.98,239.9,20.10505674]
[1733409281043,0.62788539,239.97,239.91,20.10505674]
[1733409281271,0.62788539,239.97,239.95,20.10505674]
[1733409281465,0.62788539,239.97,239.88,20.10505674]
[1733409281466,0.62788539,240.01,239.94,20.10505674]
[1733409281893,20.73294213,240.01,239.94,20.10505674]
[1733409282092,137.8,240.0,239.94,20.10505674]
[1733409282296,0.62788539,239.99,239.94,20.10505674]
[1733409282600,137.8,239.98,239.95,20.10505674]
[1733409282892,0.62788539,239.97,239.95,20.10505674]
[1733409283086,0.62788539,239.97,239.89,0.12549]
[1733409283087,137.8,239.96,239.9,20.10505674]
[1733409283289,0.62788539,239.95,239.91,20.10505674]
[1733409283495,137.8,239.94,239.9,20.10505674]
[1733409283681,0.62788539,239.93,239.92,20.10505674]
[1733409283877,20.10505674,239.99,239.85,23.902374]
[1733409283878,137.8,239.97,239.91,20.10505674]
[1733409284067,0.62788539,239.96,239.91,20.10505674]
[1733409284913,137.8,239.94,239.91,20.10505674]
[1733409285105,137.8,239.91,239.9,20.10505674]
[1733409285908,137.8,239.97,239.9,20.10505674]
[1733409286203,137.8,239.95,239.93,0.12549]
[1733409286408,137.8,239.93,239.85,23.776884]
[1733409286702,137.8,239.93,239.88,23.902374]
[1733409287489,137.8,240.01,239.92,20.10505674]
[1733409287693,0.62788539,240.0,239.94,20.10505674]
[1733409288113,0.62788539,240.0,239.96,20.10505674]
[1733409288628,137.8,239.99,239.96,20.10505674]
[1733409288808,137.8,240.03,239.97,20.10505674]
[1733409289012,137.8,240.01,239.97,20.10505674]
[1733409289190,137.8,239.99,239.97,20.10505674]
[1733409289503,137.8,240.04,239.98,20.10505674]
[1733409289713,0.62788539,240.03,239.98,20.10505674]
[1733409289905,137.8,240.02,239.97,20.10505674]
[1733409290115,137.8,240.0,239.96,20.10505674]
[1733409290407,20.10505674,240.04,239.97,20.10505674]
[1733409290590,137.8,240.02,239.97,20.10505674]
[1733409290790,138.42788539,240.01,239.97,20.10505674]
[1733409291014,137.8,240.01,239.97,20.10505674]
[1733409291313,0.62788539,240.0,239.98,20.10505674]
[1733409291495,137.8,240.01,239.99,20.10505674]
[1733409291704,20.10505674,240.13,240.0,40.33560348]
[1733409292000,137.8,240.11,240.07,20.10505674]
[1733409292198,0.62788539,240.1,240.04,0.12549]
[1733409292385,0.62788539,240.1,240.09,20.10505674]
[1733409292714,0.62788539,240.1,240.08,20.10505674]
[1733409293120,0.62788539,240.1,240.05,20.10505674]
[1733409293692,137.8,240.09,240.06,4.163]
[1733409293896,138.42788539,240.08,240.06,24.26805674]
[1733409294094,137.8,240.08,240.06,24.26805674]
[1733409294416,0.62788539,240.07,240.05,20.10505674]
[1733409294618,137.8,240.1,240.06,20.10505674]
[1733409294908,0.62788539,240.09,240.07,20.10505674]
[1733409295113,137.8,240.08,240.05,20.10505674]
[1733409295425,0.62788539,240.07,240.05,20.10505674]
[1733409295994,0.62788539,240.07,240.06,20.10505674]
[1733409296200,137.8,240.1,240.04,20.10505674]
[1733409296518,0.62788539,240.12,240.0,20.0]
[1733409296519,137.8,240.08,240.05,20.10505674]
[1733409296818,0.62788539,240.07,240.06,20.10505674]
[1733409297022,138.42788539,240.12,240.06,20.10505674]
[1733409297321,137.8,240.1,240.05,20.12549]
[1733409297613,138.42788539,240.09,240.04,20.0]
[1733409297818,137.8,240.09,240.05,0.12549]
[1733409297993,0.62788539,240.08,240.03,20.0]
[1733409298195,137.8,240.09,240.04,0.12549]
[1733409298397,137.8,240.09,240.08,20.10505674]
[1733409299311,136.8,240.09,240.07,20.10505674]
[1733409299499,136.8,240.07,240.04,0.25098]
[1733409299812,137.8,240.15,240.04,0.25098]
[1733409300019,137.8,240.13,240.1,20.10505674]
[1733409300226,137.8,240.16,240.08,0.12549]
[1733409300397,138.42788539,240.15,240.12,20.10505674]
[1733409300597,137.8,240.15,240.14,20.10505674]
[1733409301518,137.8,240.22,240.17,20.0]
[1733409301723,0.62788539,240.21,240.17,20.10505674]
[1733409302022,137.8,240.14,240.12,20.10505674]
[1733409302233,0.62788539,240.13,240.1,20.10505674]
[1733409302403,137.8,240.13,240.1,20.10505674]
[1733409302609,138.42788539,240.12,240.04,8.9105]
[1733409302809,137.8,240.11,240.04,8.9105]
[1733409303017,20.10505674,240.22,240.1,20.10505674]
[1733409303322,0.62788539,240.21,240.14,20.10505674]
[1733409304233,20.10505674,240.2,240.12,20.10505674]
[1733409304424,20.10505674,240.18,240.1,20.10505674]
[1733409304736,0.62788539,240.17,240.13,4.163]
[1733409305100,20.73294213,240.17,240.09,20.10505674]
[1733409305308,20.10505674,240.15,240.07,20.10505674]
[1733409305536,0.12549,240.23,240.05,0.12549]
[1733409305823,20.10505674,240.16,240.1,4.163]
[1733409306527,20.10505674,240.17,240.1,24.26805674]
[1733409307211,20.10505674,240.17,240.08,24.26805674]
[1733409308017,20.10505674,240.17,240.05,0.12549]
[1733409308018,137.8,240.12,240.05,4.163]
[1733409308202,20.10505674,240.1,240.05,4.163]
[1733409308399,20.10505674,240.09,240.02,20.10505674]
[1733409308634,137.8,240.08,240.02,20.10505674]
[1733409308830,30.51615674,240.13,240.05,20.10505674]
[1733409309005,137.8,240.11,240.09,4.163]
[1733409309614,137.8,240.11,240.06,20.10505674]
[1733409310438,137.8,240.1,240.08,20.10505674]
[1733409310812,20.10505674,240.16,240.08,20.10505674]
[1733409310813,137.8,240.15,240.08,20.10505674]
[1733409311013,137.8,240.14,240.1,20.10505674]
[1733409311412,137.8,240.13,240.1,20.10505674]
[1733409312642,137.8,240.13,240.1,28.27995674]
[1733409312822,137.8,240.1,240.08,20.12549]
[1733409313331,0.4739681,240.24,240.08,20.12549]
[1733409313332,137.8,240.19,240.12,20.0]
[1733409313530,137.8,240.18,240.14,20.10505674]
[1733409313833,137.8,240.17,240.11,20.10505674]
[1733409314013,137.8,240.16,240.11,20.10505674]
[1733409314729,137.8,240.16,240.02,13.6234]
[1733409314730,137.8,240.14,240.06,43.902374]
[1733409315040,137.8,240.22,240.16,20.0]
[1733409315350,117.69494326,240.22,240.21,20.10505674]
[1733409315629,117.69494326,240.21,240.19,20.10505674]
[1733409315844,117.69494326,240.21,240.17,20.10505674]
[1733409316014,117.69494326,240.21,240.19,20.10505674]
[1733409316918,117.69494326,240.2,240.19,20.10505674]
[1733409318105,117.69494326,240.2,240.19,44.13292074]
[1733409318340,117.69494326,240.23,240.2,0.12549]
[1733409318671,117.69494326,240.23,240.22,40.23054674]
[1733409319211,0.4739681,240.24,240.23,24.027864]
[1733409319628,117.69494326,240.35,240.27,44.027864]
[1733409319818,117.69494326,240.41,240.34,20.10505674]
[1733409320715,117.69494326,240.4,240.37,20.10505674]
[1733409321022,117.69494326,240.39,240.37,20.10505674]
[1733409321232,117.69494326,240.38,240.35,20.10505674]
[1733409321537,117.69494326,240.37,240.31,20.10505674]
[1733409321743,117.69494326,240.35,240.31,20.10505674]
[1733409321944,117.69494326,240.35,240.29,20.10505674]
[1733409322119,117.69494326,240.35,240.31,20.10505674]
[1733409322730,5.2329,240.46,240.18,0.62421764]
[1733409322731,117.69494326,240.3,240.29,20.10505674]
[1733409322929,117.69494326,240.28,240.23,20.10505674]
[1733409323228,117.69494326,240.27,240.21,20.10505674]
[1733409323619,137.8,240.26,240.19,20.10505674]
[1733409323817,20.10505674,240.2,240.08,10.4127]
[1733409324018,117.69494326,240.21,240.13,20.10505674]
[1733409324214,117.69494326,240.2,240.16,20.10505674]
[1733409324444,117.69494326,240.19,240.14,20.10505674]
[1733409324649,117.69494326,240.18,240.14,20.10505674]
[1733409324947,117.69494326,240.21,240.17,20.10505674]
[1733409325246,117.69494326,240.19,240.13,20.10505674]
[1733409325543,117.69494326,240.18,240.15,20.10505674]
[1733409325749,117.69494326,240.17,240.13,20.10505674]
[1733409328050,20.10505674,240.17,240.09,20.10505674]
[1733409328350,137.8,240.15,240.07,20.10505674]
[1733409328561,117.69494326,240.14,240.09,20.10505674]
[1733409329052,97.58988652,240.07,240.0,28.46305674]
[1733409329255,137.8,240.14,240.06,20.10505674]
[1733409329548,137.8,240.21,240.13,20.10505674]
[1733409329735,137.8,240.18,240.11,20.10505674]
[1733409330354,43.88194074,240.17,240.09,20.10505674]
[1733409330532,20.10505674,240.22,240.15,20.10505674]
[1733409330738,137.8,240.17,240.13,20.10505674]
[1733409330939,20.10505674,240.2,240.11,20.10505674]
[1733409331132,137.8,240.21,240.13,20.10505674]
[1733409331334,137.8,240.15,240.13,20.10505674]
[1733409331562,137.8,240.15,240.14,20.10505674]
[1733409331851,20.10505674,240.24,240.14,20.10505674]
[1733409332050,137.8,240.14,240.08,0.12549]
[1733409332256,137.8,240.14,240.07,20.0]
[1733409332257,137.8,240.18,240.12,0.12549]
[1733409332554,20.10505674,240.22,240.15,20.10505674]
[1733409332923,20.10505674,240.24,240.15,20.10505674]
[1733409333258,137.8,240.23,240.17,20.10505674]
[1733409333434,137.8,240.22,240.19,20.10505674]
[1733409333750,137.8,240.21,240.15,20.10505674]
[1733409333964,137.8,240.21,240.17,20.10505674]
[1733409334730,137.8,240.2,240.13,20.10505674]
[1733409334925,157.90505674,240.2,240.13,20.10505674]
[1733409335243,137.8,240.17,240.11,20.10505674]
[1733409335751,137.8,240.26,240.16,20.10505674]
[1733409336062,137.8,240.26,240.19,20.10505674]
[1733409336656,137.8,240.25,240.21,20.10505674]
[1733409336962,137.8,240.24,240.14,8.5406]
[1733409337138,137.8,240.23,240.16,20.10505674]
[1733409337552,137.8,240.23,240.18,20.10505674]
[1733409338741,137.8,240.23,240.16,20.10505674]
[1733409340061,137.8,240.23,240.18,20.10505674]
[1733409340852,137.8,240.22,240.2,20.10505674]
[1733409341853,137.8,240.21,240.16,20.10505674]
[1733409342056,137.8,240.2,240.16,20.10505674]
[1733409342243,137.8,240.19,240.18,20.10505674]
[1733409342869,137.8,240.18,240.16,20.10505674]
[1733409343455,137.8,240.18,240.14,20.10505674]
[1733409343966,137.8,240.18,240.16,20.10505674]
[1733409344169,12.48338617,240.23,240.15,12.48338617]
[1733409345767,12.48338617,240.25,240.15,12.48338617]
[1733409346250,12.48338617,240.23,240.15,12.48338617]
[1733409346651,12.48338617,240.25,240.17,12.48338617]
[1733409346839,12.48338617,240.27,240.19,12.48338617]
[1733409347262,12.48338617,240.29,240.21,12.48338617]
[1733409347958,12.48338617,240.25,240.17,12.48338617]
[1733409348263,137.8,240.24,240.17,12.48338617]
[1733409348450,137.8,240.24,240.19,12.48338617]
[1733409349552,137.8,240.24,240.17,12.48338617]
[1733409349780,137.8,240.24,240.2,12.48338617]
[1733409349952,137.8,240.23,240.18,12.48338617]
[1733409350150,137.8,240.22,240.18,12.48338617]
[1733409350959,137.8,240.21,240.16,12.48338617]
[1733409351464,137.8,240.21,240.11,23.776884]
[1733409351465,137.8,240.21,240.14,12.48338617]
[1733409351671,137.8,240.21,240.16,12.48338617]
[1733409351873,137.8,240.21,240.14,12.48338617]
[1733409352377,25.9136,240.34,240.12,12.48338617]
[1733409352378,137.8,240.16,240.12,12.48338617]
[1733409352582,12.48338617,240.27,240.15,12.48338617]
[1733409352748,137.8,240.26,240.17,12.48338617]
[1733409352947,137.8,240.25,240.17,12.48338617]
[1733409353282,12.48338617,240.21,240.09,19.6096]
[1733409353441,12.48338617,240.17,240.09,9.197]
[1733409353774,137.8,240.16,240.1,12.48338617]
[1733409354555,137.8,240.16,240.12,12.48338617]
[1733409355277,137.8,240.16,240.1,12.48338617]
[1733409355579,12.48338617,240.15,240.08,12.48338617]
[1733409356074,137.8,240.15,240.1,12.48338617]
[1733409356375,137.8,240.14,240.08,12.48338617]
[1733409357174,137.8,240.14,240.06,12.48338617]
[1733409357546,137.8,240.11,240.06,12.48338617]
[1733409358674,137.8,240.09,240.04,12.48338617]
[1733409358970,12.48338617,240.11,240.04,12.48338617]
[1733409359172,12.48338617,240.11,239.98,8.5276]
[1733409359355,137.8,240.1,240.02,12.48338617]
[1733409360169,137.8,240.08,240.02,12.48338617]
[1733409360673,137.8,240.07,240.06,12.48338617]
[1733409360874,137.8,240.11,240.06,12.48338617]
[1733409361566,137.8,240.1,240.04,12.48338617]
[1733409363782,137.8,240.08,240.06,0.12549]
[1733409364861,137.8,240.08,240.07,12.48338617]
[1733409365354,137.8,240.07,240.05,32.48338617]
[1733409365562,137.8,240.06,240.03,12.48338617]
[1733409366280,137.8,240.06,239.98,18.9449]
[1733409366281,137.8,240.12,240.05,12.48338617]
[1733409366654,137.8,240.16,240.09,12.48338617]
[1733409368362,12.48338617,240.11,239.98,8.5276]
[1733409368577,23.776884,240.1,239.98,8.5276]
[1733409368761,23.776884,240.1,240.03,12.48338617]
[1733409368956,137.8,240.09,240.03,12.48338617]
[1733409369159,137.8,240.09,240.05,12.48338617]
[1733409369484,137.8,240.08,240.07,12.48338617]
[1733409370252,137.8,240.08,240.07,16.64638617]
[1733409370876,5.6207,240.22,240.11,4.163]
[1733409370877,137.8,240.2,240.11,4.163]
[1733409371057,137.8,240.19,240.16,4.163]
[1733409372063,137.8,240.19,240.14,4.163]
[1733409372589,137.8,240.15,240.09,12.48338617]
[1733409372975,137.8,240.12,240.04,0.12549]
[1733409373458,137.8,240.2,240.11,12.48338617]
[1733409373654,36.26027017,240.19,240.11,12.48338617]
[1733409373874,150.28338617,240.17,240.09,12.48338617]
[1733409374268,137.8,240.15,240.09,12.48338617]
[1733409374514,137.8,240.14,240.07,12.48338617]
[1733409374791,137.8,240.13,240.07,12.48338617]
[1733409375202,161.576884,240.2,240.12,12.48338617]
[1733409375500,137.8,240.18,240.13,20.0]
[1733409375699,137.8,240.18,240.1,12.48338617]
[1733409375903,137.8,240.17,240.1,12.48338617]
[1733409376106,150.28338617,240.17,240.1,12.48338617]
[1733409376277,150.28338617,240.15,240.06,12.48338617]
[1733409377179,12.48338617,240.13,240.04,12.60887617]
[1733409377368,12.48338617,240.13,240.07,20.0]
[1733409377569,137.8,240.15,240.08,12.48338617]
[1733409377781,137.8,240.15,240.07,20.0]
[1733409377782,137.8,240.14,240.12,12.48338617]
[1733409378604,137.8,240.13,240.12,12.60887617]
[1733409379899,137.8,240.13,240.1,12.48338617]
[1733409380079,137.8,240.13,240.12,32.48338617]
[1733409380276,137.8,240.13,240.12,32.60887617]
[1733409381280,137.8,240.21,240.12,32.60887617]
[1733409381482,137.8,240.2,240.19,12.48338617]
[1733409381809,8.9031,240.34,240.22,20.0]
[1733409381810,137.8,240.26,240.22,20.0]
[1733409382099,137.8,240.26,240.22,32.48338617]
[1733409382674,137.8,240.26,240.2,12.48338617]
[1733409382893,137.8,240.26,240.18,20.0]
[1733409382894,150.28338617,240.26,240.18,32.48338617]
[1733409383202,150.28338617,240.26,240.18,12.48338617]
[1733409383608,137.8,240.26,240.2,12.48338617]
[1733409384094,137.8,240.25,240.2,12.48338617]
[1733409384298,137.8,240.25,240.18,12.48338617]
[1733409384801,137.8,240.25,240.2,12.48338617]
[1733409385280,137.8,240.25,240.18,12.48338617]
[1733409385607,137.8,240.25,240.2,12.48338617]
[1733409385804,137.8,240.25,240.21,12.48338617]
[1733409386105,137.8,240.25,240.19,12.48338617]
[1733409386903,137.8,240.24,240.23,20.0]
[1733409388999,137.8,240.24,240.21,12.48338617]
[1733409389202,137.8,240.24,240.15,10.4099]
[1733409389415,137.8,240.19,240.07,5.7783]
[1733409389607,137.8,240.18,240.13,12.48338617]
[1733409389778,137.8,240.18,240.15,12.48338617]
[1733409389976,137.8,240.17,240.15,12.48338617]
[1733409390183,137.8,240.16,240.15,12.48338617]
[1733409391304,137.8,240.16,240.15,12.60887617]
[1733409391601,137.8,240.25,240.18,20.0]
[1733409391799,137.8,240.25,240.19,12.48338617]
[1733409392119,137.8,240.23,240.15,20.0]
[1733409392276,12.48338617,240.22,240.14,12.48338617]
[1733409392902,137.8,240.19,240.11,12.48338617]
[1733409393306,35.0726,240.34,240.0,12.48338617]
[1733409393307,12.48338617,240.16,240.09,12.48338617]
[1733409393477,137.8,240.15,240.09,12.48338617]
[1733409393809,150.28338617,240.14,240.07,12.48338617]
[1733409393982,150.28338617,240.14,240.06,12.48338617]
[1733409394302,137.8,240.13,240.08,12.48338617]
[1733409395290,137.8,240.12,240.1,12.48338617]
[1733409396187,137.8,240.1,240.06,0.12549]
[1733409396487,137.8,240.09,240.08,20.12549]
[1733409396900,137.8,240.17,240.09,0.12549]
[1733409397393,137.8,240.17,240.12,12.48338617]
[1733409397583,137.8,240.16,240.13,20.0]
[1733409400908,137.8,240.14,240.03,8.8358]
[1733409401092,137.8,240.14,240.07,12.48338617]
[1733409401294,137.8,240.13,240.07,12.48338617]
[1733409401798,137.8,240.12,240.07,12.48338617]
[1733409402100,137.8,240.09,240.07,12.48338617]
[1733409404217,12.48338617,240.12,240.05,12.48338617]
[1733409404507,23.776884,240.12,240.05,12.48338617]
[1733409405302,137.8,240.11,240.07,12.48338617]
[1733409405998,137.8,240.1,240.05,12.48338617]
[1733409406213,137.8,240.09,240.07,12.48338617]
[1733409406688,137.8,240.08,240.05,12.48338617]
[1733409406889,12.48338617,240.12,240.07,20.0]
[1733409407090,12.48338617,240.12,240.05,12.48338617]
[1733409407289,137.8,240.13,240.05,12.48338617]
[1733409407711,137.8,240.13,240.07,12.48338617]
[1733409407912,137.8,240.12,240.11,20.0]
[1733409408205,137.8,240.17,240.09,12.48338617]
[1733409409195,12.48338617,240.16,240.07,12.48338617]
[1733409409397,137.8,240.14,240.07,12.48338617]
[1733409409598,137.8,240.13,240.07,12.48338617]
[1733409410106,137.8,240.12,240.05,12.48338617]
[1733409411221,137.8,240.11,240.09,12.48338617]
[1733409411396,137.8,240.11,240.07,12.48338617]
[1733409411594,137.8,240.11,240.06,32.48338617]
[1733409411802,137.8,240.11,240.07,12.48338617]
[1733409412414,150.28338617,240.14,240.07,12.48338617]
[1733409412621,12.48338617,240.13,240.06,32.48338617]
[1733409412828,150.28338617,240.13,240.06,20.0]
[1733409413322,150.28338617,240.13,240.05,12.48338617]
[1733409413619,12.48338617,240.11,240.04,12.48338617]
[1733409413823,137.8,240.06,240.0,12.48338617]
[1733409414004,12.48338617,240.03,239.96,12.48338617]
[1733409414212,137.8,240.02,239.96,12.48338617]
[1733409414699,150.28338617,240.02,239.95,12.48338617]
[1733409414895,137.8,240.02,239.96,12.48338617]
[1733409415126,137.8,240.0,239.99,12.48338617]
[1733409415816,137.8,239.99,239.95,12.48338617]
[1733409416907,137.8,239.97,239.95,12.48338617]
[1733409417098,137.8,240.03,239.96,12.48338617]
[1733409417293,150.28338617,240.03,239.99,20.0]
[1733409417815,137.8,240.03,239.96,12.48338617]
[1733409418215,137.8,240.03,239.99,20.0]
[1733409418395,150.28338617,240.03,239.95,12.48338617]
[1733409418596,12.48338617,240.02,239.98,20.0]
[1733409418812,150.28338617,240.03,239.98,20.0]
[1733409419709,150.28338617,240.03,239.99,20.0]
[1733409419903,150.28338617,240.03,239.96,12.48338617]
[1733409420118,150.28338617,240.03,239.94,12.48338617]
[1733409420301,12.48338617,240.01,239.94,12.48338617]
[1733409420508,34.189684,240.09,239.91,12.48338617]
[1733409420509,150.28338617,239.99,239.91,12.48338617]
[1733409421118,12.48338617,239.98,239.91,12.48338617]
[1733409421514,150.28338617,239.99,239.91,12.48338617]
[1733409422204,150.28338617,239.99,239.92,32.48338617]
[1733409423829,150.28338617,239.99,239.92,20.0]
[1733409424126,137.8,239.98,239.94,12.48338617]
[1733409424337,20.53681177,240.21,239.97,12.48338617]
[1733409424521,12.48338617,240.05,239.98,12.48338617]
[1733409424719,12.48338617,240.02,239.93,0.12549]
[1733409424912,12.48338617,239.97,239.92,20.0]
[1733409425104,137.8,239.97,239.93,12.48338617]
[1733409425308,137.8,239.97,239.96,12.48338617]
[1733409425507,137.8,240.02,239.96,12.48338617]
[1733409426031,137.8,240.02,239.98,12.48338617]
[1733409426209,137.8,240.01,239.95,12.48338617]
[1733409426906,137.8,240.01,239.97,12.48338617]
[1733409427320,137.8,240.01,239.96,12.48338617]
[1733409427707,137.8,240.01,239.95,12.48338617]
[1733409428403,137.8,239.96,239.87,15.9258]
[1733409428599,12.48338617,239.95,239.88,12.48338617]
[1733409428817,137.8,239.94,239.89,12.48338617]
[1733409429619,137.8,239.94,239.91,12.48338617]
[1733409429805,137.8,239.99,239.93,12.48338617]
[1733409430010,137.8,239.98,239.94,12.48338617]